fUSD/lending_fUSD_20251217
["ID","MTS","AMOUNT","RATE_DAILY","PERIOD"]
[398936591,1766007053463,-500.0,0.00016999,2]
[398936592,1766007053477,-500.0,0.00016999,2]
[398936593,1766007053491,-4640671.89551245,0.00017,2]
[398936594,1766007055159,-1996.81764025,0.00017,2]
[398936595,1766007055170,-493.17330366,0.00017,2]
[398936596,1766007055358,-3695.32561556,0.00017,2]
[398936597,1766007055380,-110756.21200927,0.00017,2]
[398936598,1766007055391,-1229.70189674,0.00017,2]
[398936599,1766007055402,-300.35996914,0.00017,2]
[398936600,1766007055412,-632.12874861,0.00017,2]
[398936601,1766007055423,-1330.08239876,0.00017,2]
[398936602,1766007055433,-6980.06561632,0.00017,2]
[398936603,1766007055448,-53744.77740974,0.00017,2]
[398936604,1766007055462,-335655.37064491,0.00017,2]
[398936605,1766007055473,-934.16,0.00017,2]
[398936606,1766007055483,-1477.1,0.00017,2]
[398936607,1766007055494,-39123.49043778,0.00017,2]
[398936608,1766007055512,-104294.4784225,0.00017,2]
[398936609,1766007055530,-3307.21390257,0.00017,2]
[398936610,1766007055541,-292.0,0.00017,2]
[398936611,1766007055552,-1604.53112907,0.00017,2]
[398936612,1766007055925,-252.636388,0.00017,2]
[398936613,1766007056153,-750.19212096,0.00012436,2]
[398936614,1766007056165,-27494.01017496,0.00012436,2]
[398936615,1766007056175,-219.67,0.00015076,2]
[398936616,1766007056184,-325929.04229284,0.00017,2]
[398936617,1766007056346,-2361.68903014,0.00017,2]
[398936618,1766007056357,-41244.36745566,0.00017,2]
[398936619,1766007056369,-652.03613473,0.00017,2]
[398936620,1766007056382,-1746.80500616,0.00017,2]
[398936621,1766007056656,-1100.0,0.00017,2]
[398936622,1766007056668,-23777.67612856,0.00017,2]
[398936623,1766007056679,-1455.72961459,0.00017,2]
[398936624,1766007355348,206.37343248,6.313e-05,2]
[398936625,1766007355374,175.58656752,6.313e-05,2]
[398936626,1766007355587,91.41343248,6.645e-05,2]
[398936627,1766007355613,290.54656752,6.645e-05,2]
[398936628,1766007355779,356.27383571,6.977e-05,2]
[398936629,1766007355807,25.68616429,6.977e-05,2]
[398936630,1766007355983,145.63125957,7.31e-05,2]
[398936631,1766007356010,236.32874043,7.31e-05,2]
[398936632,1766007356210,228.10125957,7.642e-05,2]
[398936633,1766007356238,153.85874043,7.642e-05,2]
[398936634,1766007356429,381.96,7.974e-05,2]
[398936635,1766007356638,381.96,8.307e-05,2]
[398936636,1766007356855,381.96,8.639e-05,2]
[398936637,1766007357092,381.96,8.971e-05,2]
[398936638,1766007357293,381.96,9.303e-05,2]
[398936639,1766007357484,381.96,9.636e-05,2]
[398936640,1766007357690,381.96,9.968e-05,2]
[398936641,1766007357879,381.96,0.000103,2]
[398936642,1766007358080,381.96,0.00010633,2]
[398936643,1766007358327,381.96,0.00010965,2]
[398936644,1766007358544,381.96,0.00011297,2]
[398936645,1766007358774,381.96,0.00011629,2]
[398936646,1766007358972,381.96,0.00011962,2]
[398936647,1766007441480,500.0,0.00018,30]
[398936648,1766007441759,500.0,0.00018,30]
[398936649,1766007442101,500.0,0.00018,30]
[398936650,1766007442405,500.0,0.00017,30]
[398936651,1766007442742,500.0,0.00017,30]
[398936652,1766007445844,500.0,0.00018,30]
[398936653,1766007446388,500.0,0.00017,30]
[398936654,1766007504477,1201.74967977,0.00014451,5]
[398936655,1766007924640,15017.9,0.00012061,2]
[398936656,1766007946942,1500.0,0.00012061,2]
[398936658,1766008231828,-661.42405583,0.00012139,2]
[398936659,1766008231840,-338.57594417,0.00012139,2]
[398936660,1766008231850,-195.0,0.00012177,2]
[398936661,1766008231860,-157.04082291,0.00012216,2]
[398936662,1766008231870,-370.16227497,0.00012294,2]
[398936663,1766008231882,-11.79772503,0.00012294,2]
[398936664,1766008231891,-868.51040016,0.00012295,2]
[398936665,1766008232035,-346.84803172,0.00012295,2]
[398936666,1766008232047,-480.71,0.00012295,2]
[398936667,1766008232066,-976.57156812,0.00012295,2]
[398936668,1766008232077,-262.36127934,0.00012526,2]
[398936701,1766008233689,-344.17171453,0.00012526,2]
[398936702,1766008233701,-464.3744897,0.00012526,2]
[398936703,1766008233711,-2740.89999996,0.00012526,2]
[398936704,1766008233729,-1288.12252,0.00012526,2]
[398936705,1766008233830,-556.64674786,0.00012526,2]
[398936706,1766008233841,-329.76747744,0.00012526,2]
[398936707,1766008233852,-699.62387117,0.00012526,2]
[398936708,1766008233861,-176.3394,0.00012536,2]
[398936709,1766008233871,-300.0,0.00012556,2]
[398936710,1766008233880,-1200.0,0.00012556,2]
[398936711,1766008233890,-3909.14195147,0.00012557,2]
[398936712,1766008233908,-645.66804853,0.00012557,2]
[398936713,1766008233918,-7159.49,0.00012561,2]
[398936714,1766008233927,-166.66,0.00012622,2]
[398936715,1766008233937,-150.0,0.00012625,2]
[398936716,1766008233948,-381.96,0.00012626,2]
[398936717,1766008233957,-150.99,0.00012626,2]
[398936718,1766008233967,-9999.99,0.00012626,2]
[398936719,1766008233976,-150.99,0.00012626,2]
[398936720,1766008233986,-9999.99,0.00012626,2]
[398936721,1766008233995,-17807.00507258,0.00012626,2]
[398936722,1766008234007,-14434.23077426,0.00012626,2]
[398936725,1766008237895,-328.88666808,0.00012626,2]
[398936726,1766008237983,-1663.68431195,0.00012626,2]
[398936727,1766008238017,-31267.95317313,0.00012626,2]
[398936728,1766008238026,-3372.3,0.00012626,2]
[398936729,1766008238037,-28635.52,0.00012626,2]
[398936730,1766008238047,-499.99,0.00012626,2]
[398936731,1766008238057,-9999.99,0.00012626,2]
[398936733,1766008238066,-999.99,0.00012626,2]
[398936735,1766008238077,-9999.99,0.00012626,2]
[398936737,1766008238086,-285.87,0.00012684,2]
[398936739,1766008238095,-3870.335,0.00012767,2]
[398936740,1766008238104,-176.368,0.00012767,2]
[398936742,1766008238112,-500.0,0.0001277,2]
[398936744,1766008238121,-151.0,0.0001277,2]
[398936746,1766008238130,-151.0,0.0001277,2]
[398936748,1766008238139,-151.0,0.0001277,2]
[398936749,1766008238149,-151.0,0.0001277,2]
[398936751,1766008238158,-151.0,0.0001277,2]
[398936753,1766008238167,-200.0,0.0001277,2]
[398936754,1766008238176,-151.0,0.0001277,2]
[398936756,1766008238185,-151.0,0.0001277,2]
[398936758,1766008238195,-151.0,0.0001277,2]
[398936760,1766008238204,-500.0,0.0001277,2]
[398936762,1766008238213,-151.0,0.0001277,2]
[398936763,1766008238222,-500.0,0.0001277,2]
[398936765,1766008238231,-151.0,0.0001277,2]
[398936767,1766008238240,-500.0,0.0001277,2]
[398936769,1766008238249,-500.0,0.0001277,2]
[398936771,1766008238259,-500.0,0.0001277,2]
[398936772,1766008238268,-500.0,0.0001277,2]
[398936774,1766008238277,-605.32548402,0.0001277,2]
[398936776,1766008238287,-151.0,0.0001277,2]
[398936778,1766008238296,-200.0,0.0001277,2]
[398936779,1766008238305,-151.0,0.0001277,2]
[398936781,1766008238315,-151.0,0.0001277,2]
[398936783,1766008238324,-151.0,0.0001277,2]
[398936785,1766008238333,-151.0,0.0001277,2]
[398936787,1766008238342,-151.0,0.0001277,2]
[398936789,1766008238351,-151.0,0.0001277,2]
[398936791,1766008238360,-500.0,0.0001277,2]
[398936792,1766008238369,-151.0,0.0001277,2]
[398936794,1766008238379,-151.0,0.0001277,2]
[398936796,1766008238388,-200.0,0.0001277,2]
[398936798,1766008238398,-151.0,0.0001277,2]
[398936799,1766008238408,-151.0,0.0001277,2]
[398936801,1766008238417,-151.0,0.0001277,2]
[398936803,1766008238427,-151.0,0.0001277,2]
[398936805,1766008238436,-1090.09,0.0001277,2]
[398936807,1766008238445,-12419.40827161,0.00012777,2]
[398936808,1766008238454,-8721.88160797,0.00012931,2]
[398936810,1766008238463,-594.0,0.00012953,2]
[398936812,1766008238472,-276.0,0.0001297,2]
[398936814,1766008238481,-956.0,0.00012979,2]
[398936815,1766008238490,-273.0,0.00013005,2]
[398936817,1766008238499,-166.66,0.00013038,2]
[398936819,1766008238508,-500.0,0.00013044,2]
[398936821,1766008238517,-1090.09,0.00013044,2]
[398936823,1766008238527,-1936.0,0.00013085,2]
[398936825,1766008238535,-649.0,0.00013111,2]
[398936827,1766008238544,-2500.0,0.00013127,2]
[398936828,1766008238553,-70956.1568,0.00013227,2]
[398936830,1766008238563,-25419.78206631,0.00013247,2]
[398936832,1766008238572,-368.43560589,0.00013273,2]
[398936834,1766008238581,-200.0,0.00013318,2]
[398936836,1766008238590,-200.0,0.00013318,2]
[398936838,1766008238599,-500.0,0.00013318,2]
[398936839,1766008238608,-1090.09,0.00013318,2]
[398936841,1766008238617,-502.1331823,0.00013324,2]
[398936843,1766008238626,-500.0,0.00013324,2]
[398936845,1766008238635,-500.0,0.00013324,2]
[398936847,1766008238644,-500.0,0.00013324,2]
[398936849,1766008238653,-500.0,0.00013324,2]
[398936850,1766008238663,-500.0,0.00013324,2]
[398936852,1766008238672,-500.0,0.00013324,2]
[398936854,1766008238681,-485.15693744,0.00013324,2]
[398936856,1766008238690,-500.0,0.00013324,2]
[398936858,1766008238698,-500.0,0.00013324,2]
[398936860,1766008238707,-500.0,0.00013324,2]
[398936861,1766008238716,-500.0,0.00013324,2]
[398936863,1766008238725,-500.0,0.00013324,2]
[398936865,1766008238734,-500.0,0.00013324,2]
[398936867,1766008238743,-500.0,0.00013324,2]
[398936869,1766008238751,-500.0,0.00013324,2]
[398936871,1766008238760,-500.0,0.00013324,2]
[398936872,1766008238769,-500.0,0.00013324,2]
[398936874,1766008238778,-500.0,0.00013324,2]
[398936876,1766008238787,-500.0,0.00013324,2]
[398936878,1766008238796,-500.0,0.00013324,2]
[398936880,1766008238805,-500.0,0.00013324,2]
[398936882,1766008238814,-500.0,0.00013324,2]
[398936883,1766008238823,-500.0,0.00013324,2]
[398936885,1766008238832,-500.0,0.00013324,2]
[398936887,1766008238842,-500.0,0.00013324,2]
[398936889,1766008238851,-500.0,0.00013324,2]
[398936891,1766008238860,-500.0,0.00013324,2]
[398936893,1766008238870,-49453.81975004,0.00013328,2]
[398936895,1766008238882,-3192.9,0.00013328,2]
[398936897,1766008238895,-51174.098572,0.00013328,2]
[398936899,1766008238906,-27231.82034746,0.00013328,2]
[398936901,1766008238917,-48712.6287861,0.00013328,2]
[398936903,1766008238928,-5127.81060786,0.00013328,2]
[398936905,1766008238939,-510.0107198,0.00013328,2]
[398936907,1766008238950,-574596.91121674,0.00013328,2]
[398936909,1766008238959,-1242.58655811,0.00013352,2]
[398936911,1766008238969,-250.0,0.00013352,2]
[398936913,1766008238978,-250.0,0.00013352,2]
[398936914,1766008238988,-195.0,0.00013352,2]
[398936916,1766008238997,-151.0,0.00013359,2]
[398936918,1766008239007,-247019.63430991,0.00013362,2]
[398936920,1766008239016,-500.0,0.00013373,2]
[398936922,1766008239025,-500.35110535,0.00013373,2]
[398936924,1766008239035,-500.0,0.00013373,2]
[398936926,1766008239047,-501.32368526,0.00013373,2]
[398936928,1766008239056,-556.87569377,0.00013373,2]
[398936929,1766008239065,-500.0,0.00013373,2]
[398936930,1766008239074,-500.0,0.00013373,2]
[398936932,1766008239084,-500.0,0.00013373,2]
[398936934,1766008239093,-500.0,0.00013373,2]
[398936935,1766008239103,-502.09208963,0.00013373,2]
[398936936,1766008239112,-166.66,0.00013455,2]
[398936938,1766008239122,-907.19201928,0.00013533,2]
[398936940,1766008239132,-1090.09,0.00013592,2]
[398936942,1766008239140,-602.75430883,0.00013643,2]
[398936944,1766008239151,-25419.78206627,0.00013653,2]
[398936945,1766008239160,-1000.0,0.00013656,2]
[398936946,1766008239170,-500.0,0.00013698,2]
[398936947,1766008239179,-500.0,0.00013698,2]
[398936948,1766008239188,-500.0,0.00013698,2]
[398936949,1766008239197,-500.0,0.00013698,2]
[398936950,1766008239206,-500.0,0.00013698,2]
[398936951,1766008239215,-500.0,0.00013698,2]
[398936952,1766008239223,-500.0,0.00013698,2]
[398936953,1766008239232,-500.0,0.00013698,2]
[398936954,1766008239241,-500.0,0.00013698,2]
[398936955,1766008239250,-500.0,0.00013698,2]
[398936956,1766008239259,-500.0,0.00013698,2]
[398936957,1766008239268,-500.0,0.00013698,2]
[398936958,1766008239278,-500.0,0.00013698,2]
[398936960,1766008239287,-500.0,0.00013698,2]
[398936961,1766008239296,-500.0,0.00013698,2]
[398936963,1766008239305,-500.0,0.00013698,2]
[398936965,1766008239316,-500.0,0.00013698,2]
[398936966,1766008239325,-500.0,0.00013698,2]
[398936968,1766008239335,-500.0,0.00013698,2]
[398936970,1766008239344,-500.0,0.00013698,2]
[398936972,1766008239354,-500.0,0.00013698,2]
[398936974,1766008239363,-500.0,0.00013698,2]
[398936976,1766008239373,-500.0,0.00013698,2]
[398936978,1766008239382,-500.0,0.00013698,2]
[398936979,1766008239392,-500.0,0.00013698,2]
[398936980,1766008239403,-500.0,0.00013698,2]
[398936981,1766008239411,-500.0,0.00013698,2]
[398936982,1766008239420,-500.0,0.00013698,2]
[398936983,1766008239429,-500.0,0.00013698,2]
[398936984,1766008239438,-500.0,0.00013698,2]
[398936985,1766008239447,-500.0,0.00013698,2]
[398936986,1766008239456,-500.0,0.00013698,2]
[398936987,1766008239465,-500.0,0.00013698,2]
[398936988,1766008239475,-500.0,0.00013698,2]
[398936989,1766008239483,-500.0,0.00013698,2]
[398936990,1766008239492,-500.0,0.00013698,2]
[398936991,1766008239501,-500.0,0.00013698,2]
[398936992,1766008239510,-500.0,0.00013698,2]
[398936993,1766008239520,-500.0,0.00013698,2]
[398936994,1766008239529,-500.0,0.00013698,2]
[398936995,1766008239538,-500.0,0.00013698,2]
[398936996,1766008239547,-500.0,0.00013698,2]
[398936997,1766008239555,-500.0,0.00013698,2]
[398936998,1766008239564,-500.0,0.00013698,2]
[398936999,1766008239574,-500.0,0.00013698,2]
[398937000,1766008239583,-500.0,0.00013698,2]
[398937001,1766008239592,-500.0,0.00013698,2]
[398937002,1766008239601,-500.0,0.00013698,2]
[398937003,1766008239610,-460.64,0.00013698,2]
[398937004,1766008239619,-500.0,0.00013698,2]
[398937005,1766008239628,-500.0,0.00013698,2]
[398937007,1766008239637,-500.0,0.00013698,2]
[398937008,1766008239647,-500.0,0.00013698,2]
[398937009,1766008239655,-500.0,0.00013698,2]
[398937010,1766008239664,-500.0,0.00013698,2]
[398937011,1766008239673,-500.0,0.00013698,2]
[398937012,1766008239682,-500.0,0.00013698,2]
[398937013,1766008239692,-500.0,0.00013698,2]
[398937014,1766008239701,-500.0,0.00013698,2]
[398937015,1766008239710,-500.0,0.00013698,2]
[398937016,1766008239719,-500.0,0.00013698,2]
[398937017,1766008239728,-500.0,0.00013698,2]
[398937018,1766008239736,-500.0,0.00013698,2]
[398937019,1766008239745,-500.0,0.00013698,2]
[398937020,1766008239754,-500.0,0.00013698,2]
[398937021,1766008239763,-500.0,0.00013698,2]
[398937022,1766008239772,-500.0,0.00013698,2]
[398937023,1766008239781,-500.0,0.00013698,2]
[398937024,1766008239791,-500.0,0.00013698,2]
[398937025,1766008239800,-500.0,0.00013698,2]
[398937026,1766008239809,-500.0,0.00013698,2]
[398937027,1766008239820,-641.1096514,0.00013698,2]
[398937028,1766008239829,-500.0,0.00013698,2]
[398937029,1766008239838,-500.0,0.00013698,2]
[398937030,1766008239847,-500.0,0.00013698,2]
[398937031,1766008239857,-500.0,0.00013698,2]
[398937032,1766008239866,-500.0,0.00013698,2]
[398937033,1766008239877,-500.0,0.00013698,2]
[398937034,1766008239886,-500.0,0.00013698,2]
[398937035,1766008239896,-500.0,0.00013698,2]
[398937036,1766008239906,-500.0,0.00013698,2]
[398937037,1766008239915,-500.0,0.00013698,2]
[398937038,1766008239925,-500.0,0.00013698,2]
[398937039,1766008239934,-500.0,0.00013698,2]
[398937040,1766008239943,-500.0,0.00013698,2]
[398937041,1766008239953,-500.0,0.00013698,2]
[398937042,1766008239962,-500.0,0.00013698,2]
[398937043,1766008239971,-500.0,0.00013698,2]
[398937044,1766008239981,-500.0,0.00013698,2]
[398937045,1766008239990,-500.0,0.00013698,2]
[398937046,1766008239999,-500.0,0.00013698,2]
[398937047,1766008240009,-500.0,0.00013698,2]
[398937048,1766008240018,-500.0,0.00013698,2]
[398937049,1766008240027,-300.24817944,0.00013698,2]
[398937050,1766008240038,-500.0,0.00013698,2]
[398937051,1766008240048,-500.0,0.00013698,2]
[398937052,1766008240057,-500.0,0.00013698,2]
[398937053,1766008240066,-500.0,0.00013698,2]
[398937054,1766008240075,-500.0,0.00013698,2]
[398937055,1766008240085,-500.0,0.00013698,2]
[398937056,1766008240094,-500.0,0.00013698,2]
[398937057,1766008240103,-500.0,0.00013698,2]
[398937058,1766008240112,-500.0,0.00013698,2]
[398937059,1766008240121,-500.0,0.00013698,2]
[398937060,1766008240130,-500.0,0.00013698,2]
[398937061,1766008240139,-500.0,0.00013698,2]
[398937062,1766008240149,-500.0,0.00013698,2]
[398937063,1766008240158,-500.0,0.00013698,2]
[398937064,1766008240168,-500.0,0.00013698,2]
[398937065,1766008240177,-500.0,0.00013698,2]
[398937066,1766008240186,-500.0,0.00013698,2]
[398937067,1766008240195,-500.0,0.00013698,2]
[398937068,1766008240204,-500.0,0.00013698,2]
[398937070,1766008240214,-610.37514729,0.00013698,2]
[398937072,1766008240224,-4706.37,0.00013698,2]
[398937074,1766008240233,-4706.37,0.00013698,2]
[398937076,1766008240244,-4706.37,0.00013698,2]
[398937077,1766008240253,-4706.37,0.00013698,2]
[398937079,1766008240263,-4706.37,0.00013698,2]
[398937080,1766008240272,-4706.37,0.00013698,2]
[398937082,1766008240281,-4706.37,0.00013698,2]
[398937084,1766008240291,-4706.37,0.00013698,2]
[398937086,1766008240299,-4706.37,0.00013698,2]
[398937089,1766008240309,-4706.37,0.00013698,2]
[398937091,1766008240318,-4706.37,0.00013698,2]
[398937093,1766008240327,-4706.37,0.00013698,2]
[398937095,1766008240336,-4706.37,0.00013698,2]
[398937097,1766008240345,-4706.37,0.00013698,2]
[398937099,1766008240354,-4706.37,0.00013698,2]
[398937101,1766008240363,-4706.37,0.00013698,2]
[398937103,1766008240372,-4706.37,0.00013698,2]
[398937105,1766008240382,-4706.37,0.00013698,2]
[398937107,1766008240392,-4706.37,0.00013698,2]
[398937109,1766008240401,-4706.37,0.00013698,2]
[398937111,1766008240410,-4706.37,0.00013698,2]
[398937113,1766008240419,-4706.37,0.00013698,2]
[398937115,1766008240429,-4706.37,0.00013698,2]
[398937117,1766008240438,-4706.52747309,0.00013698,2]
[398937119,1766008240447,-447.35450026,0.00013698,2]
[398937121,1766008240456,-500.0,0.00013698,2]
[398937123,1766008240466,-500.0,0.00013698,2]
[398937125,1766008240475,-282.25650796,0.00013698,2]
[398937127,1766008240484,-300.0,0.00013698,2]
[398937129,1766008240493,-300.0,0.00013698,2]
[398937131,1766008240503,-300.0,0.00013698,2]
[398937133,1766008240512,-300.0,0.00013698,2]
[398937135,1766008240521,-300.0,0.00013698,2]
[398937137,1766008240530,-300.0,0.00013698,2]
[398937139,1766008240539,-300.0,0.00013698,2]
[398937141,1766008240548,-300.0,0.00013698,2]
[398937143,1766008240557,-300.0,0.00013698,2]
[398937145,1766008240568,-358.88934253,0.00013698,2]
[398937148,1766008240577,-1000.0,0.00013698,2]
[398937184,1766008240905,-1000.0,0.00013698,2]
[398937186,1766008240915,-1000.0,0.00013698,2]
[398937188,1766008240924,-1000.0,0.00013698,2]
[398937190,1766008240934,-1000.0,0.00013698,2]
[398937192,1766008240943,-1000.0,0.00013698,2]
[398937194,1766008240952,-1000.0,0.00013698,2]
[398937196,1766008240962,-1000.0,0.00013698,2]
[398937198,1766008240972,-1000.0,0.00013698,2]
[398937200,1766008240981,-1000.0,0.00013698,2]
[398937201,1766008240991,-725.73772161,0.00013698,2]
[398937202,1766008241000,-200.0,0.00013699,2]
[398937203,1766008241010,-166.66,0.00013699,2]
[398937204,1766008241019,-500.0,0.00013699,2]
[398937205,1766008241028,-500.0,0.00013699,2]
[398937206,1766008241039,-500.0,0.00013699,2]
[398937207,1766008241049,-500.0,0.00013699,2]
[398937208,1766008241059,-500.0,0.00013699,2]
[398937209,1766008241068,-500.0,0.00013699,2]
[398937210,1766008241079,-500.0,0.00013699,2]
[398937211,1766008241088,-500.0,0.00013699,2]
[398937212,1766008241097,-500.0,0.00013699,2]
[398937213,1766008241108,-500.0,0.00013699,2]
[398937214,1766008241119,-500.0,0.00013699,2]
[398937215,1766008241128,-500.0,0.00013699,2]
[398937216,1766008241137,-588.0538828,0.00013699,2]
[398937217,1766008241147,-500.0,0.00013699,2]
[398937218,1766008241156,-500.0,0.00013699,2]
[398937219,1766008241165,-500.0,0.00013699,2]
[398937220,1766008241174,-500.0,0.00013699,2]
[398937221,1766008241183,-500.0,0.00013699,2]
[398937222,1766008241193,-500.0,0.00013699,2]
[398937223,1766008241202,-500.0,0.00013699,2]
[398937224,1766008241211,-500.0,0.00013699,2]
[398937225,1766008241220,-500.0,0.00013699,2]
[398937226,1766008241230,-500.0,0.00013699,2]
[398937227,1766008241239,-500.0,0.00013699,2]
[398937228,1766008241248,-155.53,0.000137,2]
[398937229,1766008241258,-155.53,0.000137,2]
[398937230,1766008241267,-155.53,0.000137,2]
[398937231,1766008241276,-155.53,0.000137,2]
[398937232,1766008241285,-255.0,0.00013724,2]
[398937233,1766008241295,-41094.18823407,0.00013724,2]
[398937234,1766008241304,-420.0,0.00013776,2]
[398937235,1766008241312,-1680.0,0.00013811,2]
[398937236,1766008241322,-166.66,0.00013836,2]
[398937237,1766008241330,-1090.09,0.00013865,2]
[398937238,1766008241339,-200.0,0.00013866,2]
[398937239,1766008241348,-166.66,0.00013871,2]
[398937240,1766008241357,-368.43560589,0.00013878,2]
[398937241,1766008241365,-498.60294116,0.00013921,2]
[398937242,1766008241374,-166.66,0.00013973,2]
[398937243,1766008241384,-16147.56387929,0.00014,2]
[398937244,1766008241393,-500.0,0.00014027,2]
[398937245,1766008241403,-500.0,0.00014055,2]
[398937246,1766008241412,-25419.78206627,0.00014059,2]
[398937247,1766008241423,-166.66,0.0001411,2]
[398937248,1766008241432,-1090.09,0.00014139,2]
[398937249,1766008241441,-166.66,0.00014247,2]
[398937250,1766008241451,-166.66,0.00014288,2]
[398937251,1766008241460,-166.66,0.00014384,2]
[398937252,1766008241470,-1090.09,0.00014413,2]
[398937253,1766008241479,-200.0,0.00014414,2]
[398937254,1766008241488,-368.43560589,0.00014482,2]
[398937255,1766008241499,-500.0,0.00014504,2]
[398937256,1766008241508,-1090.09,0.00014687,2]
[398937257,1766008241522,-166.66,0.00014705,2]
[398937258,1766008241537,-22432.6987,0.00014709,2]
[398937259,1766008241546,-1000.0,0.00014709,2]
[398937260,1766008241556,-13692.05,0.00014809,2]
[398937261,1766008241565,-1029.7974,0.00014816,2]
[398937262,1766008241575,-500.0,0.00014904,2]
[398937263,1766008241584,-433.0,0.00014923,2]
[398937264,1766008241594,-1090.09,0.00014961,2]
[398937265,1766008241603,-200.0,0.00014962,2]
[398937266,1766008241612,-253.87,0.00015068,2]
[398937267,1766008241621,-900.0,0.00015068,2]
[398937268,1766008241635,-368.43560589,0.00015087,2]
[398937269,1766008241648,-587.0,0.00015114,2]
[398937270,1766008241657,-1000.0,0.00015173,2]
[398937271,1766008241666,-2351.0,0.00015192,2]
[398937272,1766008241675,-1090.09,0.00015235,2]
[398937273,1766008241685,-150.0,0.00015288,2]
[398937274,1766008241694,-150.0,0.00015288,2]
[398937275,1766008241703,-150.0,0.00015288,2]
[398937276,1766008241712,-150.0,0.00015288,2]
[398937277,1766008241722,-150.0,0.00015288,2]
[398937278,1766008241731,-150.0,0.00015288,2]
[398937279,1766008241740,-150.0,0.00015288,2]
[398937280,1766008241749,-150.0,0.00015288,2]
[398937281,1766008241759,-150.65844906,0.00015288,2]
[398937282,1766008241768,-151.0803606,0.00015288,2]
[398937283,1766008241777,-150.0,0.00015288,2]
[398937284,1766008241787,-150.0,0.00015288,2]
[398937285,1766008241796,-150.0,0.00015288,2]
[398937286,1766008241806,-150.0,0.00015377,2]
[398937287,1766008241815,-500.0,0.00015386,2]
[398937288,1766008241825,-150.0,0.00015401,2]
[398937289,1766008241834,-500.0,0.00015408,2]
[398937290,1766008241844,-150.0,0.00015408,2]
[398937291,1766008241853,-150.0,0.00015408,2]
[398937292,1766008241863,-150.0,0.00015408,2]
[398937293,1766008241873,-150.0,0.00015408,2]
[398937294,1766008241882,-150.0,0.00015408,2]
[398937295,1766008241892,-150.0,0.00015408,2]
[398937296,1766008241901,-150.0,0.00015408,2]
[398937297,1766008241911,-161.99230191,0.00015408,2]
[398937298,1766008241920,-150.42124713,0.00015408,2]
[398937299,1766008241929,-500.0,0.00015408,2]
[398937300,1766008241939,-500.0,0.00015408,2]
[398937301,1766008241952,-150.0,0.00015408,2]
[398937302,1766008241962,-500.0,0.00015408,2]
[398937303,1766008241971,-500.0,0.00015408,2]
[398937304,1766008241980,-150.0,0.00015408,2]
[398937305,1766008241990,-150.0,0.00015408,2]
[398937306,1766008241999,-500.0,0.00015408,2]
[398937307,1766008242008,-500.0,0.00015408,2]
[398937308,1766008242018,-150.0,0.00015408,2]
[398937309,1766008242028,-500.0,0.00015408,2]
[398937310,1766008242039,-500.0,0.00015408,2]
[398937311,1766008242051,-150.0,0.00015408,2]
[398937312,1766008242060,-150.0,0.00015408,2]
[398937313,1766008242070,-500.0,0.00015408,2]
[398937314,1766008242080,-150.0,0.00015418,2]